[Event "*** Titled Tuesday Blitz"]
[Site "Chess.com"]
[Date "2020.11.03"]
[Round "10"]
[White "Margarita2907"]
[Black "tk22h"]
[Result "1-0"]
[WhiteElo "2237"]
[BlackElo "2349"]
[TimeControl "180+1"]
[EndTime "12:00:06 PST"]
[Termination "Margarita2907 won by resignation"]

1. e4 {[%clk 0:03:00.9]} 1... e5 {[%clk 0:02:57.7]} 2. Nf3 {[%clk 0:03:00.7]}
2... Nc6 {[%clk 0:02:57.4]} 3. Bc4 {[%clk 0:02:59.9]} 3... Nf6 {[%clk 0:02:55]}
4. d3 {[%clk 0:02:57.8]} 4... Be7 {[%clk 0:02:54]} 5. O-O {[%clk 0:02:56.7]}
5... O-O {[%clk 0:02:51.8]} 6. h3 {[%clk 0:02:56.4]} 6... d6 {[%clk 0:02:50.3]}
7. c3 {[%clk 0:02:55.7]} 7... h6 {[%clk 0:02:48.1]} 8. Nbd2 {[%clk 0:02:54.2]}
8... Na5 {[%clk 0:02:46.4]} 9. Bb5 {[%clk 0:02:53]} 9... a6 {[%clk 0:02:46.1]}
10. Ba4 {[%clk 0:02:53.1]} 10... b5 {[%clk 0:02:46.7]} 11. Bc2 {[%clk
0:02:53.6]} 11... c5 {[%clk 0:02:47.3]} 12. d4 {[%clk 0:02:49.6]} 12... cxd4
{[%clk 0:02:44.2]} 13. cxd4 {[%clk 0:02:49.1]} 13... Nc6 {[%clk 0:02:40.1]} 14.
d5 {[%clk 0:02:44.6]} 14... Nb4 {[%clk 0:02:38.6]} 15. Bb1 {[%clk 0:02:42.7]}
15... a5 {[%clk 0:02:33.7]} 16. a3 {[%clk 0:02:42.2]} 16... Na6 {[%clk
0:02:32.7]} 17. Re1 {[%clk 0:02:41.8]} 17... Bd7 {[%clk 0:02:20.5]} 18. Nf1
{[%clk 0:02:39.8]} 18... Nc5 {[%clk 0:02:11.8]} 19. Ng3 {[%clk 0:02:24.4]} 19...
a4 {[%clk 0:02:09.4]} 20. Bc2 {[%clk 0:02:17.9]} 20... Rc8 {[%clk 0:02:03]} 21.
Be3 {[%clk 0:02:17.2]} 21... Qb6 {[%clk 0:02:00.8]} 22. Rc1 {[%clk 0:02:15]}
22... Rc7 {[%clk 0:01:59.8]} 23. Bb1 {[%clk 0:01:59.9]} 23... Rfc8 {[%clk
0:01:57.9]} 24. Qe2 {[%clk 0:01:54.1]} 24... Qb7 {[%clk 0:01:50.5]} 25. Rc3
{[%clk 0:01:44.7]} 25... Nb3 {[%clk 0:01:43]} 26. Rxc7 {[%clk 0:01:41.4]} 26...
Rxc7 {[%clk 0:01:40.5]} 27. Nd2 {[%clk 0:01:32.5]} 27... Nxd2 {[%clk 0:01:28.3]}
28. Qxd2 {[%clk 0:01:31.1]} 28... Bf8 {[%clk 0:01:24.9]} 29. Rc1 {[%clk
0:01:28.5]} 29... Qc8 {[%clk 0:01:23.3]} 30. Rxc7 {[%clk 0:01:24.4]} 30... Qxc7
{[%clk 0:01:24.2]} 31. Bd3 {[%clk 0:01:24.4]} 31... Ne8 {[%clk 0:01:21.8]} 32.
Ne2 {[%clk 0:01:13.4]} 32... Be7 {[%clk 0:01:17.6]} 33. Qb4 {[%clk 0:01:09.9]}
33... Qb7 {[%clk 0:01:02.4]} 34. Nc3 {[%clk 0:01:08.1]} 34... Nc7 {[%clk
0:00:47.6]} 35. Nxa4 {[%clk 0:01:05.8]} 35... Na6 {[%clk 0:00:40.3]} 36. Qb3
{[%clk 0:01:03.4]} 36... Bd8 {[%clk 0:00:27.3]} 37. Nc3 {[%clk 0:01:00.6]} 37...
Nc7 {[%clk 0:00:23.6]} 38. Na2 {[%clk 0:00:51.1]} 38... f5 {[%clk 0:00:18.5]}
39. Nb4 {[%clk 0:00:47.1]} 39... fxe4 {[%clk 0:00:18.1]} 40. Bxe4 {[%clk
0:00:46.5]} 40... Na6 {[%clk 0:00:17]} 41. Nxa6 {[%clk 0:00:44.4]} 41... Qxa6
{[%clk 0:00:16.6]} 42. Qd3 {[%clk 0:00:43.4]} 42... Qa4 {[%clk 0:00:15.7]} 43.
Bh7+ {[%clk 0:00:41.6]} 43... Kh8 {[%clk 0:00:15.7]} 44. Bf5 {[%clk 0:00:36.1]}
44... Be8 {[%clk 0:00:14.6]} 45. Bg6 {[%clk 0:00:33.7]} 45... Bd7 {[%clk
0:00:14.2]} 46. Qe2 {[%clk 0:00:28.3]} 46... Qb3 {[%clk 0:00:12.1]} 47. Qf3
{[%clk 0:00:26.6]} 47... Be7 {[%clk 0:00:04.7]} 48. Qf7 {[%clk 0:00:26.1]} 48...
Qd1+ {[%clk 0:00:02.5]} 49. Kh2 {[%clk 0:00:23.2]} 1-0

[Event "*** Titled Tuesday Blitz"]
[Site "Chess.com"]
[Date "2020.11.03"]
[Round "10"]
[White "tsaruk_maks"]
[Black "Frogo47"]
[Result "1-0"]
[WhiteElo "2585"]
[BlackElo "2457"]
[TimeControl "180+1"]
[EndTime "12:00:10 PST"]
[Termination "tsaruk_maks won on time"]

1. e4 {[%clk 0:03:00.9]} 1... c6 {[%clk 0:02:57.4]} 2. d4 {[%clk 0:03:00.6]}
2... d5 {[%clk 0:02:57.7]} 3. Nd2 {[%clk 0:03:01.3]} 3... dxe4 {[%clk
0:02:56.9]} 4. Nxe4 {[%clk 0:03:01.5]} 4... Nf6 {[%clk 0:02:57.5]} 5. Nxf6+
{[%clk 0:03:01.8]} 5... exf6 {[%clk 0:02:57.8]} 6. c3 {[%clk 0:03:02.2]} 6...
Bd6 {[%clk 0:02:58.2]} 7. Bd3 {[%clk 0:03:02.9]} 7... O-O {[%clk 0:02:58.3]} 8.
Qc2 {[%clk 0:03:03.8]} 8... Re8+ {[%clk 0:02:58.4]} 9. Ne2 {[%clk 0:03:04.7]}
9... h5 {[%clk 0:02:58.2]} 10. O-O {[%clk 0:03:05.3]} 10... h4 {[%clk
0:02:57.8]} 11. h3 {[%clk 0:03:05.9]} 11... Nd7 {[%clk 0:02:57.6]} 12. Be3
{[%clk 0:02:59.3]} 12... Nf8 {[%clk 0:02:57.3]} 13. c4 {[%clk 0:02:59.3]} 13...
Bc7 {[%clk 0:02:46.1]} 14. Rfe1 {[%clk 0:02:06.4]} 14... Be6 {[%clk 0:02:04.6]}
15. Rad1 {[%clk 0:02:04.6]} 15... Ba5 {[%clk 0:02:00.4]} 16. Nc3 {[%clk
0:02:04]} 16... Bc7 {[%clk 0:01:54.4]} 17. d5 {[%clk 0:02:01.6]} 17... cxd5
{[%clk 0:01:44.4]} 18. cxd5 {[%clk 0:02:02.5]} 18... Bxh3 {[%clk 0:01:30.9]} 19.
gxh3 {[%clk 0:01:56.4]} 19... Qd6 {[%clk 0:01:30.4]} 20. f4 {[%clk 0:01:10.7]}
20... Rxe3 {[%clk 0:01:26.9]} 21. Rxe3 {[%clk 0:01:11.6]} 21... Bb6 {[%clk
0:01:27.1]} 22. Qf2 {[%clk 0:01:11.4]} 22... Re8 {[%clk 0:01:14.8]} 23. Rde1
{[%clk 0:01:10.8]} 23... Rxe3 {[%clk 0:01:14.3]} 24. Rxe3 {[%clk 0:01:09.8]}
24... Qc5 {[%clk 0:01:11.2]} 25. Nd1 {[%clk 0:01:07.6]} 25... Qxd5 {[%clk
0:01:10.9]} 26. Kh2 {[%clk 0:01:01.7]} 26... Bxe3 {[%clk 0:00:54.4]} 27. Qxe3
{[%clk 0:01:02.6]} 27... Ne6 {[%clk 0:00:47.3]} 28. Nc3 {[%clk 0:00:56.1]} 28...
Qd6 {[%clk 0:00:47.2]} 29. Ne2 {[%clk 0:00:54.3]} 29... b6 {[%clk 0:00:44.8]}
30. Kg2 {[%clk 0:00:50.2]} 30... Qd5+ {[%clk 0:00:38.7]} 31. Qe4 {[%clk
0:00:34]} 31... Qxa2 {[%clk 0:00:38.1]} 32. Bc4 {[%clk 0:00:25.3]} 32... Qxb2
{[%clk 0:00:33.2]} 33. Bxe6 {[%clk 0:00:22.2]} 33... fxe6 {[%clk 0:00:34.1]} 34.
Qxe6+ {[%clk 0:00:22.4]} 34... Kh8 {[%clk 0:00:34.5]} 35. Kf3 {[%clk 0:00:19.5]}
35... a5 {[%clk 0:00:23.1]} 36. Kg4 {[%clk 0:00:17.9]} 36... a4 {[%clk 0:00:23]}
37. Kh5 {[%clk 0:00:14.7]} 37... Qb3 {[%clk 0:00:17.3]} 38. f5 {[%clk
0:00:03.4]} 38... Qf3+ {[%clk 0:00:11.6]} 39. Kg6 {[%clk 0:00:03]} 39... Qg2+
{[%clk 0:00:11.1]} 40. Kf7 {[%clk 0:00:03]} 40... Qxh3 {[%clk 0:00:06]} 41. Nf4
{[%clk 0:00:03.5]} 41... Qb3 {[%clk 0:00:05.7]} 42. Nd5 {[%clk 0:00:03.2]} 1-0

[Event "*** Titled Tuesday Blitz"]
[Site "Chess.com"]
[Date "2020.11.03"]
[Round "10"]
[White "Chernobay_Artem"]
[Black "RobertoJBM"]
[Result "0-1"]
[WhiteElo "2626"]
[BlackElo "2792"]
[TimeControl "180+1"]
[EndTime "12:00:12 PST"]
[Termination "RobertoJBM won by resignation"]

1. d4 {[%clk 0:03:00.9]} 1... d5 {[%clk 0:02:59.6]} 2. c4 {[%clk 0:03:01.3]}
2... c6 {[%clk 0:02:58.4]} 3. Nf3 {[%clk 0:03:01.6]} 3... Nf6 {[%clk 0:02:58.2]}
4. Nc3 {[%clk 0:03:01.6]} 4... dxc4 {[%clk 0:02:58.1]} 5. a4 {[%clk 0:03:00.7]}
5... Bf5 {[%clk 0:02:58]} 6. e3 {[%clk 0:03:01.4]} 6... e6 {[%clk 0:02:57.5]} 7.
Bxc4 {[%clk 0:03:02]} 7... Nbd7 {[%clk 0:02:58.1]} 8. O-O {[%clk 0:03:02]} 8...
Bb4 {[%clk 0:02:58.7]} 9. Qe2 {[%clk 0:03:02.6]} 9... Bg6 {[%clk 0:02:58.4]} 10.
e4 {[%clk 0:03:02]} 10... O-O {[%clk 0:02:58.7]} 11. Rd1 {[%clk 0:02:37.6]}
11... Bxc3 {[%clk 0:02:56.3]} 12. bxc3 {[%clk 0:02:33.4]} 12... Bxe4 {[%clk
0:02:53.8]} 13. Ng5 {[%clk 0:02:30]} 13... Bg6 {[%clk 0:02:51.4]} 14. Ba3 {[%clk
0:02:27.9]} 14... Re8 {[%clk 0:02:50.9]} 15. Nf3 {[%clk 0:02:08.8]} 15... Nd5
{[%clk 0:02:50.7]} 16. Qd2 {[%clk 0:01:50.3]} 16... Bh5 {[%clk 0:02:43.4]} 17.
Be2 {[%clk 0:01:50.2]} 17... Qf6 {[%clk 0:02:35.5]} 18. Bd6 {[%clk 0:01:40.5]}
18... Bxf3 {[%clk 0:02:32.1]} 19. Bxf3 {[%clk 0:01:38.7]} 19... e5 {[%clk
0:02:17.4]} 20. dxe5 {[%clk 0:01:35.9]} 20... Nxe5 {[%clk 0:02:18.3]} 21. Bxe5
{[%clk 0:01:35.7]} 21... Rxe5 {[%clk 0:02:14.5]} 22. c4 {[%clk 0:01:19.6]} 22...
Nf4 {[%clk 0:02:07.6]} 23. Rab1 {[%clk 0:01:13.6]} 23... b6 {[%clk 0:01:25.9]}
24. Qd6 {[%clk 0:01:03]} 24... Qxd6 {[%clk 0:01:09.2]} 25. Rxd6 {[%clk
0:01:02.5]} 25... Rc8 {[%clk 0:01:09.8]} 26. Bxc6 {[%clk 0:00:53]} 26... g6
{[%clk 0:01:05.1]} 27. g3 {[%clk 0:00:49.6]} 27... Rc5 {[%clk 0:00:56.7]} 28.
Bd7 {[%clk 0:00:41.8]} 28... Ne2+ {[%clk 0:00:55.7]} 29. Kf1 {[%clk 0:00:40.5]}
29... Nc3 {[%clk 0:00:56]} 30. Rc1 {[%clk 0:00:18.9]} 30... Ne4 {[%clk
0:00:51.8]} 31. Rd4 {[%clk 0:00:17.9]} 31... R8c7 {[%clk 0:00:48.1]} 32. Bg4
{[%clk 0:00:13.6]} 32... Rxc4 {[%clk 0:00:35.4]} 33. Rcxc4 {[%clk 0:00:13.4]}
33... Rxc4 {[%clk 0:00:36.3]} 34. Rd8+ {[%clk 0:00:12.4]} 34... Kg7 {[%clk
0:00:36.3]} 35. Bf3 {[%clk 0:00:12.5]} 35... Nc5 {[%clk 0:00:34.4]} 36. a5
{[%clk 0:00:08.6]} 36... bxa5 {[%clk 0:00:33.4]} 37. Ra8 {[%clk 0:00:08.7]}
37... a4 {[%clk 0:00:28.2]} 38. Rxa7 {[%clk 0:00:08.1]} 38... Rd4 {[%clk
0:00:28.7]} 39. Bc6 {[%clk 0:00:05.3]} 39... Rd6 {[%clk 0:00:20.6]} 40. Bb5
{[%clk 0:00:04.2]} 40... h5 {[%clk 0:00:16.1]} 41. Kg2 {[%clk 0:00:04.3]} 41...
Rf6 {[%clk 0:00:15]} 42. Bxa4 {[%clk 0:00:03.6]} 42... Ne4 {[%clk 0:00:15.4]}
43. f4 {[%clk 0:00:03.8]} 43... Rb6 {[%clk 0:00:13.8]} 44. Bc2 {[%clk
0:00:02.9]} 44... Rb2 {[%clk 0:00:12.7]} 45. Rc7 {[%clk 0:00:03.6]} 45... Nd6
{[%clk 0:00:11.9]} 46. Kf3 {[%clk 0:00:03.5]} 46... Nb5 {[%clk 0:00:12.1]} 47.
Rc4 {[%clk 0:00:02.4]} 47... Rxc2 {[%clk 0:00:11.7]} 0-1

[Event "*** Titled Tuesday Blitz"]
[Site "Chess.com"]
[Date "2020.11.03"]
[Round "10"]
[White "LubovMarkelova"]
[Black "Manukyan_Artak"]
[Result "0-1"]
[WhiteElo "2232"]
[BlackElo "2411"]
[TimeControl "180+1"]
[EndTime "12:00:12 PST"]
[Termination "Manukyan_Artak won on time"]

1. Nf3 {[%clk 0:03:00.9]} 1... d5 {[%clk 0:02:57.4]} 2. d4 {[%clk 0:03:00.6]}
2... c6 {[%clk 0:02:56.9]} 3. c4 {[%clk 0:03:00.8]} 3... Nf6 {[%clk 0:02:56.1]}
4. e3 {[%clk 0:03:00.3]} 4... Bg4 {[%clk 0:02:56]} 5. h3 {[%clk 0:02:59]} 5...
Bh5 {[%clk 0:02:55.7]} 6. g4 {[%clk 0:02:58.7]} 6... Bg6 {[%clk 0:02:55.2]} 7.
Ne5 {[%clk 0:02:59.4]} 7... Nbd7 {[%clk 0:02:54.8]} 8. Nxg6 {[%clk 0:02:58.8]}
8... hxg6 {[%clk 0:02:54.4]} 9. Bg2 {[%clk 0:02:59.5]} 9... dxc4 {[%clk
0:02:53.6]} 10. Nd2 {[%clk 0:02:46.4]} 10... Nb6 {[%clk 0:02:53.3]} 11. a4
{[%clk 0:02:43.2]} 11... a5 {[%clk 0:02:52.2]} 12. Qc2 {[%clk 0:02:42.6]} 12...
e6 {[%clk 0:02:52.2]} 13. O-O {[%clk 0:02:41]} 13... Qd6 {[%clk 0:02:32.9]} 14.
f4 {[%clk 0:02:39.6]} 14... Qb4 {[%clk 0:02:26.3]} 15. b3 {[%clk 0:02:31.8]}
15... cxb3 {[%clk 0:02:17.5]} 16. Nxb3 {[%clk 0:02:31.9]} 16... Nfd5 {[%clk
0:02:10.6]} 17. Ba3 {[%clk 0:02:29.1]} 17... Qc4 {[%clk 0:02:10.3]} 18. Qxc4
{[%clk 0:01:47.5]} 18... Nxc4 {[%clk 0:02:11.2]} 19. Bxf8 {[%clk 0:01:46.5]}
19... Kxf8 {[%clk 0:02:11.1]} 20. e4 {[%clk 0:01:39.4]} 20... Nde3 {[%clk
0:02:06.9]} 21. Rf2 {[%clk 0:01:34.3]} 21... Nxg2 {[%clk 0:02:05.5]} 22. Kxg2
{[%clk 0:01:33]} 22... Ke7 {[%clk 0:02:01.5]} 23. Rc1 {[%clk 0:01:26.5]} 23...
Nb6 {[%clk 0:01:57.8]} 24. Nc5 {[%clk 0:01:25.3]} 24... Ra7 {[%clk 0:01:54.7]}
25. Rb1 {[%clk 0:01:22.6]} 25... Nd7 {[%clk 0:01:44.9]} 26. Nxb7 {[%clk
0:01:08.1]} 26... Rb8 {[%clk 0:01:42.2]} 27. Rfb2 {[%clk 0:01:08.6]} 27... f6
{[%clk 0:01:39.3]} 28. Kf3 {[%clk 0:01:08.6]} 28... g5 {[%clk 0:01:34.4]} 29. f5
{[%clk 0:01:05.3]} 29... exf5 {[%clk 0:01:27.2]} 30. gxf5 {[%clk 0:01:03.1]}
30... Rh8 {[%clk 0:01:24.1]} 31. Kg3 {[%clk 0:00:59.3]} 31... Rh4 {[%clk
0:01:24]} 32. Re2 {[%clk 0:00:35.6]} 32... Ra8 {[%clk 0:01:16.7]} 33. Nc5 {[%clk
0:00:27.1]} 33... Nxc5 {[%clk 0:01:12]} 34. dxc5 {[%clk 0:00:28]} 34... Rd8
{[%clk 0:01:11.1]} 35. Rb7+ {[%clk 0:00:25.3]} 35... Rd7 {[%clk 0:01:11.3]} 36.
Rxd7+ {[%clk 0:00:12.4]} 36... Kxd7 {[%clk 0:01:12.2]} 37. Rd2+ {[%clk
0:00:12.4]} 37... Kc7 {[%clk 0:01:12]} 38. Rd4 {[%clk 0:00:10.9]} 38... Rf4
{[%clk 0:01:09.4]} 39. h4 {[%clk 0:00:09.1]} 39... Rxh4 {[%clk 0:01:08.5]} 40.
Rc4 {[%clk 0:00:03.5]} 40... Rf4 {[%clk 0:01:05.8]} 41. Rd4 {[%clk 0:00:03.5]}
41... Rf1 {[%clk 0:01:02.5]} 42. Rd6 {[%clk 0:00:02.3]} 42... Rc1 {[%clk
0:00:56.9]} 43. Re6 {[%clk 0:00:02.2]} 43... Rxc5 {[%clk 0:00:56.7]} 44. Re7+
{[%clk 0:00:02.6]} 44... Kd6 {[%clk 0:00:57]} 45. Rxg7 {[%clk 0:00:02.8]} 45...
Rc4 {[%clk 0:00:57.2]} 46. Rf7 {[%clk 0:00:01.4]} 46... Rxe4 {[%clk 0:00:43.4]}
47. Rxf6+ {[%clk 0:00:01.7]} 47... Ke5 {[%clk 0:00:43.6]} 48. Rxc6 {[%clk
0:00:01.4]} 48... Kxf5 {[%clk 0:00:36.3]} 49. Rc5+ {[%clk 0:00:01.2]} 49... Re5
{[%clk 0:00:36.5]} 50. Rc4 {[%clk 0:00:01.5]} 50... Re3+ {[%clk 0:00:35.4]} 51.
Kf2 {[%clk 0:00:01.4]} 51... Re4 {[%clk 0:00:32.6]} 52. Rc5+ {[%clk 0:00:01]}
52... Re5 {[%clk 0:00:32.8]} 53. Rc4 {[%clk 0:00:01.3]} 53... g4 {[%clk
0:00:30.7]} 0-1

[Event "*** Titled Tuesday Blitz"]
[Site "Chess.com"]
[Date "2020.11.03"]
[Round "10"]
[White "Witik"]
[Black "Gerodot71"]
[Result "1-0"]
[WhiteElo "2620"]
[BlackElo "2487"]
[TimeControl "180+1"]
[EndTime "12:00:16 PST"]
[Termination "Witik won by resignation"]

1. e4 {[%clk 0:03:00.9]} 1... e5 {[%clk 0:03:00.1]} 2. f4 {[%clk 0:02:57.1]}
2... exf4 {[%clk 0:02:59.4]} 3. Bc4 {[%clk 0:02:57]} 3... c6 {[%clk 0:02:56.8]}
4. Nc3 {[%clk 0:02:56.6]} 4... Nf6 {[%clk 0:02:53.8]} 5. Bb3 {[%clk 0:02:56.4]}
5... d5 {[%clk 0:02:47.6]} 6. exd5 {[%clk 0:02:56.3]} 6... cxd5 {[%clk
0:02:48.5]} 7. d4 {[%clk 0:02:56.3]} 7... Bd6 {[%clk 0:02:45.3]} 8. Nf3 {[%clk
0:02:56.2]} 8... Nc6 {[%clk 0:02:43.6]} 9. O-O {[%clk 0:02:56]} 9... Be6 {[%clk
0:02:43.5]} 10. Ng5 {[%clk 0:02:26.9]} 10... Qc7 {[%clk 0:02:35.5]} 11. Nb5
{[%clk 0:02:24.7]} 11... Qb8 {[%clk 0:02:31.7]} 12. Nxd6+ {[%clk 0:02:24.3]}
12... Qxd6 {[%clk 0:02:32.6]} 13. Bxf4 {[%clk 0:02:24.5]} 13... Qd7 {[%clk
0:02:33.2]} 14. c3 {[%clk 0:02:14.1]} 14... O-O {[%clk 0:02:29.9]} 15. Nxe6
{[%clk 0:01:58.6]} 15... fxe6 {[%clk 0:02:30.8]} 16. Bc2 {[%clk 0:01:57.4]}
16... Rf7 {[%clk 0:02:27.4]} 17. Qe2 {[%clk 0:01:55.8]} 17... Raf8 {[%clk
0:02:26.6]} 18. Rae1 {[%clk 0:01:53.1]} 18... Re7 {[%clk 0:02:26]} 19. Bg5
{[%clk 0:01:49.3]} 19... Nd8 {[%clk 0:02:22.3]} 20. Rf3 {[%clk 0:01:41.8]} 20...
Ref7 {[%clk 0:02:21.4]} 21. Ref1 {[%clk 0:01:38]} 21... a6 {[%clk 0:02:19.6]}
22. Bd3 {[%clk 0:01:33.4]} 22... b5 {[%clk 0:02:17.4]} 23. h3 {[%clk 0:01:30.6]}
23... Nb7 {[%clk 0:02:03.1]} 24. Re1 {[%clk 0:01:21]} 24... Re7 {[%clk
0:01:55.8]} 25. Re3 {[%clk 0:01:19.8]} 25... Nd8 {[%clk 0:01:54.2]} 26. a4
{[%clk 0:01:18.5]} 26... bxa4 {[%clk 0:01:51.9]} 27. Bxa6 {[%clk 0:01:18.6]}
27... Ref7 {[%clk 0:01:38.8]} 28. Bb5 {[%clk 0:01:17.7]} 28... Qd6 {[%clk
0:01:37.7]} 29. Bxa4 {[%clk 0:01:05.9]} 29... Ne4 {[%clk 0:01:37.6]} 30. Bxd8
{[%clk 0:01:05.4]} 30... Qxd8 {[%clk 0:01:37.4]} 31. Rxe4 {[%clk 0:00:57.8]}
31... dxe4 {[%clk 0:01:35.2]} 32. Qxe4 {[%clk 0:00:58.4]} 32... Qb6 {[%clk
0:01:28.3]} 33. b4 {[%clk 0:00:54.9]} 33... Qc7 {[%clk 0:01:26.1]} 34. Bb3
{[%clk 0:00:53.3]} 34... Kh8 {[%clk 0:01:24.9]} 35. Bxe6 {[%clk 0:00:52.2]}
35... Re7 {[%clk 0:01:22.9]} 36. c4 {[%clk 0:00:46.3]} 36... Qb6 {[%clk
0:01:15.2]} 37. c5 {[%clk 0:00:34.4]} 37... Qxb4 {[%clk 0:01:13.9]} 38. c6
{[%clk 0:00:34.6]} 38... Ra7 {[%clk 0:00:53.8]} 39. d5 {[%clk 0:00:33.4]} 39...
Qc5+ {[%clk 0:00:44.9]} 40. Kh2 {[%clk 0:00:30.5]} 40... Ra2 {[%clk 0:00:41.7]}
41. Qe5 {[%clk 0:00:24.9]} 41... h6 {[%clk 0:00:26.5]} 42. Re3 {[%clk
0:00:20.9]} 42... Ra1 {[%clk 0:00:15.5]} 43. c7 {[%clk 0:00:16.2]} 43... Qc1
{[%clk 0:00:11.4]} 44. d6 {[%clk 0:00:12.5]} 44... Qg1+ {[%clk 0:00:10.3]} 45.
Kg3 {[%clk 0:00:13]} 45... Raa8 {[%clk 0:00:10.2]} 46. d7 {[%clk 0:00:12.3]}
46... Ra5 {[%clk 0:00:10.3]} 47. d8=Q {[%clk 0:00:10.2]} 47... Rxe5 {[%clk
0:00:10.4]} 48. Qxf8+ {[%clk 0:00:09.8]} 48... Kh7 {[%clk 0:00:11.3]} 49. Rxe5
{[%clk 0:00:09.2]} 49... Qe1+ {[%clk 0:00:09.2]} 50. Rxe1 {[%clk 0:00:08.8]} 1-0

[Event "*** Titled Tuesday Blitz"]
[Site "Chess.com"]
[Date "2020.11.03"]
[Round "10"]
[White "woodhy"]
[Black "MF1966Idrisov"]
[Result "1-0"]
[WhiteElo "2484"]
[BlackElo "2362"]
[TimeControl "180+1"]
[EndTime "12:00:17 PST"]
[Termination "woodhy won on time"]

1. e4 {[%clk 0:02:58.4]} 1... c5 {[%clk 0:02:57.1]} 2. Nf3 {[%clk 0:02:46.2]}
2... Nc6 {[%clk 0:02:57]} 3. d4 {[%clk 0:02:46.5]} 3... cxd4 {[%clk 0:02:57]} 4.
Nxd4 {[%clk 0:02:47.4]} 4... Nf6 {[%clk 0:02:57.2]} 5. Nc3 {[%clk 0:02:47.5]}
5... g6 {[%clk 0:02:57.5]} 6. Bg5 {[%clk 0:02:39.8]} 6... Bg7 {[%clk 0:02:57.1]}
7. Bc4 {[%clk 0:02:29.7]} 7... Qa5 {[%clk 0:02:34.5]} 8. Bxf6 {[%clk 0:02:13.2]}
8... Bxf6 {[%clk 0:02:33.8]} 9. Ne2 {[%clk 0:02:13.6]} 9... O-O {[%clk
0:02:22.8]} 10. O-O {[%clk 0:02:13.6]} 10... d6 {[%clk 0:02:22.9]} 11. h3 {[%clk
0:02:08.2]} 11... Qc5 {[%clk 0:02:19.8]} 12. Bb3 {[%clk 0:02:05.2]} 12... Nd4
{[%clk 0:02:09.5]} 13. Nd5 {[%clk 0:02:03.5]} 13... Nxe2+ {[%clk 0:01:57.4]} 14.
Qxe2 {[%clk 0:02:04.4]} 14... Bxb2 {[%clk 0:01:51.1]} 15. Nxe7+ {[%clk
0:02:01.6]} 15... Kg7 {[%clk 0:01:49.1]} 16. Rad1 {[%clk 0:01:54.2]} 16... Be6
{[%clk 0:01:34.7]} 17. Qd2 {[%clk 0:01:21.1]} 17... Bc3 {[%clk 0:01:26.7]} 18.
Qd3 {[%clk 0:00:57.5]} 18... Rad8 {[%clk 0:01:19.6]} 19. Kh1 {[%clk 0:00:48.8]}
19... Qg5 {[%clk 0:01:02]} 20. Qxc3+ {[%clk 0:00:45.5]} 20... Kh6 {[%clk
0:01:00]} 21. Nd5 {[%clk 0:00:41.3]} 21... f5 {[%clk 0:00:55.6]} 22. exf5 {[%clk
0:00:39.2]} 22... Rxf5 {[%clk 0:00:53.6]} 23. Qe3 {[%clk 0:00:35.3]} 23... Rdf8
{[%clk 0:00:39.5]} 24. Qxg5+ {[%clk 0:00:33.3]} 24... Kxg5 {[%clk 0:00:39.1]}
25. f4+ {[%clk 0:00:33.1]} 25... Kh4 {[%clk 0:00:38.8]} 26. Kh2 {[%clk
0:00:30.5]} 26... R5f7 {[%clk 0:00:30.7]} 27. g3+ {[%clk 0:00:28.3]} 27... Kh5
{[%clk 0:00:30.1]} 28. Ne3 {[%clk 0:00:27.8]} 28... Bxb3 {[%clk 0:00:29.2]} 29.
axb3 {[%clk 0:00:28.7]} 29... Re7 {[%clk 0:00:28.3]} 30. Rd3 {[%clk 0:00:27.2]}
30... Rfe8 {[%clk 0:00:28.2]} 31. Rf3 {[%clk 0:00:26.2]} 31... d5 {[%clk
0:00:27]} 32. g4+ {[%clk 0:00:26.5]} 32... Kh6 {[%clk 0:00:25.6]} 33. c3 {[%clk
0:00:20.9]} 33... a5 {[%clk 0:00:19.5]} 34. Kg3 {[%clk 0:00:20.8]} 34... b5
{[%clk 0:00:19]} 35. g5+ {[%clk 0:00:20.5]} 35... Kg7 {[%clk 0:00:18.3]} 36.
Nxd5 {[%clk 0:00:20.7]} 36... Re1 {[%clk 0:00:17.1]} 37. Rfe3 {[%clk 0:00:20.9]}
37... a4 {[%clk 0:00:15.6]} 38. Rxe8 {[%clk 0:00:20.2]} 38... Rxe8 {[%clk
0:00:14.3]} 39. bxa4 {[%clk 0:00:20.7]} 39... bxa4 {[%clk 0:00:14.3]} 40. c4
{[%clk 0:00:21.2]} 40... Rc8 {[%clk 0:00:10.1]} 41. Ne3 {[%clk 0:00:20.1]} 41...
Kf7 {[%clk 0:00:09.1]} 42. Ra3 {[%clk 0:00:20.1]} 42... Ra8 {[%clk 0:00:07.3]}
43. Kf3 {[%clk 0:00:20.5]} 43... Ke6 {[%clk 0:00:07.5]} 44. Ke4 {[%clk
0:00:21.1]} 44... Kd6 {[%clk 0:00:07.8]} 45. Kd4 {[%clk 0:00:22]} 45... Kc6
{[%clk 0:00:08.1]} 46. Nd5 {[%clk 0:00:22.3]} 46... Ra7 {[%clk 0:00:04.9]} 47.
Nc3 {[%clk 0:00:21.9]} 47... Rd7+ {[%clk 0:00:03.8]} 48. Nd5 {[%clk 0:00:21.7]}
48... Ra7 {[%clk 0:00:03.1]} 49. Ke5 {[%clk 0:00:21.1]} 49... Kc5 {[%clk
0:00:02.6]} 50. Kf6 {[%clk 0:00:21.4]} 50... Kxc4 {[%clk 0:00:02.8]} 51. Rxa4+
{[%clk 0:00:21.5]} 51... Rxa4 {[%clk 0:00:02.1]} 52. Nb6+ {[%clk 0:00:22.4]} 1-0